Workbook

Sheet FBA
F2: 2-ojo VSAFAS „Finansinės būklės ataskaita“
F3: 2 priedas
B5: (Žemesniojo lygio viešojo sektoriaus subjektų, išskyrus mokesčių fondus ir išteklių fondus, finansinės būklės ataskaitos forma)
B7: Gargždų vaikų ir jaunimo laisvalaikio centras
B8: (viešojo sektoriaus subjekto arba viešojo sektoriaus subjektų grupės pavadinimas)
B9: Įm.k.195174984 Laugalių 6 , Gargždai
B10: (viešojo sektoriaus subjekto, parengusio finansinės būklės ataskaitą (konsoliduotąją finansinės būklės ataskaitą), kodas, adresas)
B13: FINANSINĖS BŪKLĖS ATASKAITA
B14: PAGAL 2025-03-31 D. DUOMENIS
B16: 2025-04-25 Nr.____
B17: (data)
E18: Pateikimo valiuta ir tikslumas: eurais
B19: Eil. Nr. | C19: Straipsniai | F19: Pastabos Nr. | G19: Paskutinė ataskaitinio laikotarpio diena | H19: Paskutinė praėjusio ataskaitinio laikotarpio diena
B20: A. | C20: ILGALAIKIS TURTAS | G20: =SUM(G21,G27,G37,G38,G39) -> 785789.50 | H20: =SUM(H21,H27,H37,H38,H39) -> 788458.37
B21: I. | C21: Nematerialusis turtas | G21: =SUM(G22:G26) -> 0.00 | H21: =SUM(H22:H26) -> 0.00
B22: I.1 | D22: Plėtros darbai | G22: 0 | H22: 0
B23: I.2 | D23: Programinė įranga ir jos licencijos | G23: 0.00 | H23: 0.00
B24: I.3 | D24: Kitas nematerialusis turtas | G24: 0 | H24: 0
B25: I.4 | D25: Nebaigti projektai ir išankstiniai mokėjimai | G25: 0 | H25: 0
B26: I.5 | D26: Prestižas | G26: 0 | H26: 0
B27: II. | C27: Ilgalaikis materialusis turtas | F27: P04 | G27: =SUM(G28:G36) -> 785789.50 | H27: =SUM(H28:H36) -> 788458.37
B28: II.1 | D28: Žemė | G28: 0.00 | H28: 0.00
B29: II.2 | D29: Pastatai | G29: 39465.25 | H29: 39714.67
B30: II.3 | D30: Infrastruktūros statiniai | G30: 0.00 | H30: 0.00
B31: II.4 | D31: Kiti statiniai | G31: 11273.89 | H31: 11339.29
B32: II.5 | D32: Mašinos ir įrenginiai | G32: 12825.10 | H32: 14231.86
B33: II.6 | D33: Transporto priemonės | G33: 0 | H33: 0
B34: II.7 | D34: Baldai, biuro įranga ir kitas ilgalaikis materialusis turtas | G34: 3125.26 | H34: 4072.55
B35: II.8 | D35: Kultūros ir kitos vertybės | G35: 719100.00 | H35: 719100.00
B36: II.9 | D36: Nebaigta statyba ir išankstiniai mokėjimai | G36: 0.00 | H36: 0.00
B37: III. | C37: Ilgalaikis finansinis turtas | G37: 0 | H37: 0
B38: IV. | C38: Mineraliniai ištekliai | G38: 0 | H38: 0
B39: V. | C39: Kitas ilgalaikis turtas | G39: 0 | H39: 0
B40: B. | C40: BIOLOGINIS TURTAS | G40: 0 | H40: 0
B41: C. | C41: TRUMPALAIKIS TURTAS | G41: =SUM(G42,G48,G49,G56,G57) -> 72467.68 | H41: =SUM(H42,H48,H49,H56,H57) -> 65092.51
B42: I. | C42: Atsargos | F42: P08 | G42: =SUM(G43:G47) -> 0.00 | H42: =SUM(H43:H47) -> 0.00
B43: I.1 | D43: Strateginės ir neliečiamosios atsargos | G43: 0 | H43: 0
B44: I.2 | D44: Medžiagos, žaliavos ir ūkinis inventorius | G44: 0.00 | H44: 0.00
B45: I.3 | D45: Nebaigta gaminti produkcija ir nebaigtos vykdyti sutartys | G45: 0 | H45: 0
B46: I.4 | D46: Pagaminta produkcija, atsargos, skirtos parduoti (perduoti) | G46: 0 | H46: 0
B47: I.5 | D47: Ilgalaikis materialusis ir biologinis turtas, skirtas parduoti | G47: 0 | H47: 0
B48: II. | C48: Išankstiniai apmokėjimai | F48: P09 | G48: 186.49 | H48: 295.77
B49: III. | C49: Per vienus metus gautinos sumos | F49: P10 | G49: =SUM(G50:G55) -> 71637.80 | H49: =SUM(H50:H55) -> 63865.55
B50: III.1 | D50: Gautinos trumpalaikės finansinės sumos | G50: 0 | H50: 0
B51: III.2 | D51: Gautini mokesčiai ir socialinės įmokos | G51: 0 | H51: 0
B52: III.3 | D52: Gautinos finansavimo sumos | G52: 0.00 | H52: 0.00
B53: III.4 | D53: Gautinos sumos už turto naudojimą, parduotas prekes, turtą, paslaugas | G53: 3430.86 | H53: 2785.86
B54: III.5 | D54: Sukauptos gautinos sumos | G54: 68206.94 | H54: 61079.69
B55: III.6 | D55: Kitos gautinos sumos | G55: 0.00 | H55: 0.00
B56: IV. | C56: Trumpalaikės investicijos | G56: 0 | H56: 0
B57: V. | C57: Pinigai ir pinigų ekvivalentai | F57: P11 | G57: 643.39 | H57: 931.19
C58: IŠ VISO TURTO: | G58: =SUM(G20,G40,G41) -> 858257.18 | H58: =SUM(H20,H40,H41) -> 853550.88
B59: D. | C59: FINANSAVIMO SUMOS | F59: P12 | G59: =SUM(G60:G63) -> 94015.54 | H59: =SUM(H60:H63) -> 97241.49
B60: I. | C60: Iš valstybės biudžeto | G60: 0.00 | H60: 0.00
B61: II. | C61: Iš savivaldybės biudžeto | G61: 93602.15 | H61: 96380.30
B62: III. | C62: Iš Europos Sąjungos, užsienio valstybių ir tarptautinių organizacijų | G62: 0.00 | H62: 0.00
B63: IV. | C63: Iš kitų šaltinių | G63: 413.39 | H63: 861.19
B64: E. | C64: ĮSIPAREIGOJIMAI | G64: =SUM(G65,G69) -> 64314.65 | H64: =SUM(H65,H69) -> 61079.69
B65: I. | C65: Ilgalaikiai įsipareigojimai | F65: P15 | G65: =SUM(G66:G68) -> 1356.67 | H65: =SUM(H66:H68) -> 1356.67
B66: I.1 | D66: Ilgalaikiai finansiniai įsipareigojimai | G66: 0 | H66: 0
B67: I.2 | D67: Ilgalaikiai atidėjiniai | G67: 1356.67 | H67: 1356.67
B68: I.3 | D68: Kiti ilgalaikiai įsipareigojimai | G68: 0 | H68: 0
B69: II. | C69: Trumpalaikiai įsipareigojimai | F69: P17 | G69: =SUM(G70:G75,G78:G83) -> 62957.98 | H69: =SUM(H70:H75,H78:H83) -> 59723.02
B70: II.1 | D70: Ilgalaikių atidėjinių einamųjų metų dalis ir trumpalaikiai atidėjiniai | G70: 0 | H70: 0
B71: II.2 | D71: Ilgalaikių įsipareigojimų einamųjų metų dalis | G71: 0 | H71: 0
B72: II.3 | D72: Trumpalaikiai finansiniai įsipareigojimai | G72: 0 | H72: 0
B73: II.4 | D73: Mokėtinos subsidijos, dotacijos ir finansavimo sumos | G73: 0 | H73: 0
B74: II.5 | D74: Mokėtinos sumos į Europos Sąjungos biudžetą | G74: 0 | H74: 0
B75: II.6 | D75: Mokėtinos sumos į biudžetus ir fondus | G75: =SUM(G76,G77) -> 0.00 | H75: =SUM(H76,H77) -> 0.00
B76: II.6.1 | E76: Grąžintinos finansavimo sumos | G76: 0 | H76: 0
B77: II.6.2 | E77: Kitos mokėtinos sumos biudžetui | G77: 0 | H77: 0
B78: II.7 | D78: Mokėtinos socialinės išmokos | G78: 0 | H78: 0
B79: II.8 | D79: Grąžintini mokesčiai, įmokos ir jų permokos | G79: 0 | H79: 0
B80: II.9 | D80: Tiekėjams mokėtinos sumos | G80: 3872.41 | H80: 127.29
B81: II.10 | D81: Su darbo santykiais susiję įsipareigojimai | G81: 0.00 | H81: 0.00
B82: II.11 | D82: Sukauptos mokėtinos sumos | G82: 59085.57 | H82: 59595.73
B83: II.12 | D83: Kiti trumpalaikiai įsipareigojimai | G83: 0 | H83: 0
B84: F. | C84: GRYNASIS TURTAS | F84: P18 | G84: =SUM(G85,G86,G89,G90) -> 699926.99 | H84: =SUM(H85,H86,H89,H90) -> 695229.70
B85: I. | C85: Dalininkų kapitalas | G85: 0 | H85: 0
B86: II. | C86: Rezervai | G86: =SUM(G87,G88) -> 692373.84 | H86: =SUM(H87,H88) -> 692373.84
B87: II.1 | D87: Tikrosios vertės rezervas | G87: 692373.84 | H87: 692373.84
B88: II.2 | D88: Kiti rezervai | G88: 0 | H88: 0
B89: III. | C89: Nuosavybės metodo įtaka | G89: 0 | H89: 0
B90: IV. | C90: Sukauptas perviršis ar deficitas | G90: =SUM(G91:G92) -> 7553.15 | H90: =SUM(H91:H92) -> 2855.86
B91: IV.1 | D91: Einamųjų metų perviršis ar deficitas | G91: 4697.29 | H91: 2855.86
B92: IV.2 | D92: Ankstesnių metų perviršis ar deficitas | G92: 2855.86 | H92: 0
B93: G. | C93: MAŽUMOS DALIS
C94: IŠ VISO FINANSAVIMO SUMŲ, ĮSIPAREIGOJIMŲ, GRYNOJO TURTO IR MAŽUMOS DALIES: | G94: =SUM(G59,G64,G84,G93) -> 858257.18 | H94: =SUM(H59,H64,H84,H93) -> 853550.88
B96: Direktorė | G96: Skaidra Karalienė
B97: (viešojo sektoriaus subjekto vadovo arba jo įgalioto administracijos vadovo pareigų pavadinimas) | F97: (parašas) | G97: (vardas ir pavardė)
B99: Biudžetinių įstaigų centralizuotos apskaitos skyriaus vedėja | G99: Viktorija Kaprizkina
B100: (ataskaitą parengusio asmens pareigų pavadinimas) | F100: (parašas) | G100: (vardas ir pavardė)

Sheet VRA
H2: 3-iojo VSAFAS „Veiklos rezultatų ataskaita“
H3: 2 priedas
B5: (Žemesniojo lygio viešojo sektoriaus subjektų, išskyrus mokesčių fondus ir išteklių fondus
B6: (įskaitant socialinės apsaugos fondus), veiklos rezultatų ataskaitos forma)
B7: Gargždų vaikų ir jaunimo laisvalaikio centras
B8: (viešojo sektoriaus subjekto arba viešojo sektoriaus subjektų grupės pavadinimas)
B9: Įm.k.195174984 Laugalių 6 , Gargždai
B10: (viešojo sektoriaus subjekto, parengusio veiklos rezultatų ataskaitą
B11: arba konsoliduotąją veiklos rezultatų ataskaitą, kodas, adresas)
B13: VEIKLOS REZULTATŲ ATASKAITA
B15: PAGAL 2025-03-31 D. DUOMENIS
B17: 2025-04-25 Nr.____
B18: (data)
B19: Pateikimo valiuta ir tikslumas: eurais
B20: Eil. Nr. | D20: Straipsniai | H20: Pastabos Nr. | I20: Ataskaitinis laikotarpis | J20: Praėjęs ataskaitinis laikotarpis
B21: A. | C21: PAGRINDINĖS VEIKLOS PAJAMOS | D21: PAGRINDINĖS VEIKLOS PAJAMOS | I21: =SUM(I22,I27,I28) -> 121799.06 | J21: =SUM(J22,J27,J28) -> 106941.16
B22: I. | C22: FINANSAVIMO PAJAMOS | D22: FINANSAVIMO PAJAMOS | I22: =SUM(I23:I26) -> 113029.06 | J22: =SUM(J23:J26) -> 98846.16
B23: I.1. | C23: Iš valstybės biudžeto | D23: Iš valstybės biudžeto | I23: 11900.00 | J23: 10200.00
B24: I.2. | C24: Iš savivaldybių biudžetų | D24: Iš savivaldybių biudžetų | I24: 100681.26 | J24: 87548.30
B25: I.3. | C25: Iš ES, užsienio valstybių ir tarptautinių organizacijų lėšų | D25: Iš ES, užsienio valstybių ir tarptautinių organizacijų lėšų | I25: 0.00 | J25: 0.00
B26: I.4. | C26: Iš kitų finansavimo šaltinių | D26: Iš kitų finansavimo šaltinių | I26: 447.80 | J26: 1097.86
B27: II. | C27: MOKESČIŲ IR SOCIALINIŲ ĮMOKŲ PAJAMOS | D27: MOKESČIŲ IR SOCIALINIŲ ĮMOKŲ PAJAMOS
B28: III. | C28: PAGRINDINĖS VEIKLOS KITOS PAJAMOS | D28: PAGRINDINĖS VEIKLOS KITOS PAJAMOS | H28: P21 | I28: =SUM(I29)+SUM(I30) -> 8770.00 | J28: =SUM(J29)+SUM(J30) -> 8095.00
B29: III.1. | C29: Pagrindinės veiklos kitos pajamos | D29: Pagrindinės veiklos kitos pajamos | I29: 8770.00 | J29: 8095.00
B30: III.2. | C30: Pervestinų pagrindinės veiklos kitų pajamų suma | D30: Pervestinų pagrindinės veiklos kitų pajamų suma | I30: 0 | J30: 0
B31: B. | C31: PAGRINDINĖS VEIKLOS SĄNAUDOS | D31: PAGRINDINĖS VEIKLOS SĄNAUDOS | H31: P22 | I31: =SUM(I32:I45) -> 117101.77 | J31: =SUM(J32:J45) -> 102611.63
B32: I. | C32: Darbo užmokesčio ir socialinio draudimo | D32: DARBO UŽMOKESČIO IR SOCIALINIO DRAUDIMO | I32: 93128.16 | J32: 83662.48
B33: II. | C33: Nusidėvėjimo ir amortizacijos | D33: NUSIDĖVĖJIMO IR AMORTIZACIJOS | I33: 1783.22 | J33: 1150.75
B34: III. | C34: KOMUNALINIŲ PASLAUGŲ IR ryšių | D34: KOMUNALINIŲ PASLAUGŲ IR RYŠIŲ | I34: 15476.49 | J34: 14554.52
B35: IV. | C35: Komandiruočių | D35: KOMANDIRUOČIŲ | I35: 0.00 | J35: 0.00
B36: V. | C36: Transporto | D36: TRANSPORTO | I36: 0.00 | J36: 0.00
B37: VI. | C37: Kvalifikacijos kėlimo | D37: KVALIFIKACIJOS KĖLIMO | I37: 583.30 | J37: 191.16
B38: VII. | C38: PAPRASTOJO Remonto IR EKSPLOATAVIMO | D38: PAPRASTOJO REMONTO IR EKSPLOATAVIMO | I38: 39.00 | J38: 0.00
B39: VIII. | C39: NUVERTĖJIMO IR NURAŠYTŲ SUMŲ | D39: NUVERTĖJIMO IR NURAŠYTŲ SUMŲ | I39: 0 | J39: 0
B40: IX. | C40: SUNAUDOTŲ IR PARDUOTŲ ATSARGŲ SAVIKAINA | D40: SUNAUDOTŲ IR PARDUOTŲ ATSARGŲ SAVIKAINA | I40: 3881.73 | J40: 1274.91
B41: X. | C41: socialinių išmokų | D41: SOCIALINIŲ IŠMOKŲ | I41: 1038.00 | J41: 0.00
B42: XI. | C42: nuomos | D42: NUOMOS | I42: 0 | J42: 0
B43: XII. | C43: finansavimo | D43: FINANSAVIMO | I43: 0 | J43: 0
B44: XIII. | C44: kitų paslaugų | D44: KITŲ PASLAUGŲ | I44: 1171.87 | J44: 1777.81
B45: XIV. | C45: Kitos | D45: KITOS | I45: 0 | J45: 0
B46: C. | C46: PAGRINDINĖS VEIKLOS PERVIRŠIS AR DEFICITAS | D46: PAGRINDINĖS VEIKLOS PERVIRŠIS AR DEFICITAS | I46: =I21-I31 -> 4697.29 | J46: =J21-J31 -> 4329.53
B47: D. | C47: KITOS VEIKLOS REZULTATAS | D47: KITOS VEIKLOS REZULTATAS | I47: =IF(TYPE(I48)=1,I48,0)+IF(TYPE(I49)=1,I49,0)-IF(TYPE(I50)=1,I50,0) -> 0.00 | J47: =IF(TYPE(J48)=1,J48,0)+IF(TYPE(J49)=1,J49,0)-IF(TYPE(J50)=1,J50,0) -> 0.00
B48: I. | C48: Kitos veiklos pajamos | D48: KITOS VEIKLOS PAJAMOS | I48: 0.00 | J48: 0.00
B49: II. | C49: PERVESTINOS Į BIUDŽETĄ KITOS VEIKLOS PAJAMOS | D49: PERVESTINOS Į BIUDŽETĄ KITOS VEIKLOS PAJAMOS | I49: 0 | J49: 0
B50: III. | C50: Kitos veiklos sąnaudos | D50: KITOS VEIKLOS SĄNAUDOS | I50: 0 | J50: 0
B51: E. | C51: FINANSINĖS IR INVESTICINĖS VEIKLOS REZULTATAS | D51: FINANSINĖS IR INVESTICINĖS VEIKLOS REZULTATAS | I51: 0 | J51: 0
B52: F. | C52: APSKAITOS POLITIKOS KEITIMO IR ESMINIŲ APSKAITOS KLAIDŲ TAISYMO ĮTAKA | D52: APSKAITOS POLITIKOS KEITIMO IR ESMINIŲ APSKAITOS KLAIDŲ TAISYMO ĮTAKA | I52: 0 | J52: 0
B53: G. | C53: PELNO MOKESTIS | D53: PELNO MOKESTIS | I53: 0 | J53: 0
B54: H. | C54: GRYNASIS PERVIRŠIS AR DEFICITAS PRIEŠ NUOSAVYBĖS METODO ĮTAKĄ | D54: GRYNASIS PERVIRŠIS AR DEFICITAS PRIEŠ NUOSAVYBĖS METODO ĮTAKĄ | I54: =SUM(I46,I47,I51,I52,I53) -> 4697.29 | J54: =SUM(J46,J47,J51,J52,J53) -> 4329.53
B55: I. | C55: NUOSAVYBĖS METODO ĮTAKA | D55: NUOSAVYBĖS METODO ĮTAKA | I55: 0 | J55: 0
B56: J. | C56: GRYNASIS PERVIRŠIS AR DEFICITAS | D56: GRYNASIS PERVIRŠIS AR DEFICITAS | I56: =SUM(I54,I55) -> 4697.29 | J56: =SUM(J54,J55) -> 4329.53
B57: I. | C57: TENKANTIS KONTROLIUOJANČIAJAM SUBJEKTUI | D57: TENKANTIS KONTROLIUOJANČIAJAM SUBJEKTUI
B58: II. | C58: TENKANTIS MAŽUMOS DALIAI | D58: TENKANTIS MAŽUMOS DALIAI
B60: Direktorė | I60: Skaidra Karalienė
B61: (viešojo sektoriaus subjekto vadovas arba jo įgaliotas administracijos vadovas) | H61: (parašas) | I61: (vardas ir pavardė)
B63: Biudžetinių įstaigų centralizuotos apskaitos skyriaus vedėja | I63: Viktorija Kaprizkina
B64: vyriausiasis buhalteris (buhalteris) | H64: (parašas) | I64: (vardas ir pavardė)

Sheet FINANSAVIMO SUMOS
J2: 20-ojo VSAFAS „Finansavimo sumos“
J3: 4 priedas
B5: (Informacijos apie finansavimo sumas pagal šaltinį, tikslinę paskirtį ir jų pokyčius per ataskaitinį laikotarpį pateikimo žemesniojo lygio
B6: finansinių ataskaitų aiškinamajame rašte forma)
F7: Gargždų vaikų ir jaunimo laisvalaikio centras
B8: FINANSAVIMO SUMOS PAGAL ŠALTINĮ, TIKSLINĘ PASKIRTĮ IR JŲ POKYČIAI PER ATASKAITINĮ LAIKOTARPĮ
G9: 2025-03-31
B10: Eil. Nr. | C10: Finansavimo sumos | D10: Finansavimo sumų likutis ataskaitinio laikotarpio pradžioje | E10: Per ataskaitinį laikotarpį | N10: Finansavimo sumų likutis ataskaitinio laikotarpio pabaigoje
E11: Finansavimo sumos (gautos), išskyrus neatlygintinai gautą turtą | F11: Finansavimo sumų pergrupavimas* | G11: Neatlygintinai gautas turtas | H11: Perduota kitiems viešojo sektoriaus subjektams | I11: Finansavimo sumų sumažėjimas dėl turto pardavimo | J11: Finansavimo sumų sumažėjimas dėl jų panaudojimo savo veiklai | K11: Finansavimo sumų sumažėjimas dėl jų perdavimo ne viešojo sektoriaus subjektams | L11: Finansavimo sumos (grąžintos) | M11: Finansavimo sumų (gautinų) pasikeitimas
B12: 1 | C12: 2 | D12: 3 | E12: 4 | F12: 5 | G12: 6 | H12: 7 | I12: 8 | J12: 9 | K12: 10 | L12: 11 | M12: 12 | N12: 13
B13: 1. | C13: Iš valstybės biudžeto (išskyrus valstybės biudžeto asignavimų dalį, gautą iš Europos Sąjungos, užsienio valstybių ir tarptautinių organizacijų): | D13: =SUM(D14:D15) -> 0.00 | E13: 11,900.00 | F13: 0.00 | G13: 0.00 | H13: 0.00 | I13: 0.00 | J13: -11,900.00 | K13: 0.00 | L13: 0.00 | M13: 0.00 | N13: =SUM(D13:M13) -> 0.00
B14: 1.1. | C14: nepiniginiam turtui įsigyti | D14: 0.00 | E14: 0 | F14: 0 | G14: 0 | H14: 0 | I14: 0 | J14: 0 | K14: 0 | L14: 0 | M14: 0 | N14: 0.00
B15: 1.2. | C15: kitoms išlaidoms kompensuoti | D15: 0.00 | E15: 11,900.00 | F15: 0 | G15: 0 | H15: 0 | I15: 0 | J15: -11,900.00 | K15: 0 | L15: 0 | M15: 0.00 | N15: 0.00
B16: 2. | C16: Iš savivaldybės biudžeto (išskyrus savivaldybės biudžeto asignavimų dalį, gautą iš Europos Sąjungos, užsienio valstybių ir tarptautinių organizacijų): | D16: =SUM(D17:D18) -> 96,380.30 | E16: 94,868.15 | F16: 0.00 | G16: 0.00 | H16: 0.00 | I16: 0.00 | J16: -97,646.30 | K16: 0.00 | L16: 0.00 | M16: 0.00 | N16: 93,602.15
B17: 2.1. | C17: nepiniginiam turtui įsigyti | D17: 96,084.53 | E17: 602.13 | F17: 929.66 | G17: 0 | H17: 0 | I17: 0 | J17: -4,200.66 | K17: 0 | L17: 0 | M17: 0.00 | N17: 93,415.66
B18: 2.2. | C18: kitoms išlaidoms kompensuoti | D18: 295.77 | E18: 94,266.02 | F18: -929.66 | G18: 0 | H18: 0 | I18: 0 | J18: -93,445.64 | K18: 0 | L18: 0 | M18: 0.00 | N18: 186.49
B19: 3. | C19: Iš Europos Sąjungos, užsienio valstybių ir tarptautinių organizacijų (finansavimo sumų dalis, kuri gaunama iš Europos Sąjungos, neįskaitant finansvimo sumų iš valstybės ar savivaldybės biudžetų ES projektams finansuoti): | D19: =SUM(D20:D21) -> 0.00 | E19: 0.00 | F19: 0.00 | G19: 0.00 | H19: 0.00 | I19: 0.00 | J19: 0.00 | K19: 0.00 | L19: 0.00 | M19: 0.00 | N19: 0.00
B20: 3.1. | C20: nepiniginiam turtui įsigyti | D20: 0.00 | E20: 0 | F20: 0 | G20: 0 | H20: 0 | I20: 0 | J20: 0 | K20: 0 | L20: 0 | M20: 0 | N20: 0.00
B21: 3.2. | C21: kitoms išlaidoms kompensuoti | D21: 0.00 | E21: 0 | F21: 0 | G21: 0 | H21: 0 | I21: 0 | J21: 0 | K21: 0 | L21: 0 | M21: 0 | N21: 0.00
B22: 4. | C22: Iš kitų šaltinių: | D22: =SUM(D23:D24) -> 861.19 | E22: 0.00 | F22: 0.00 | G22: 0.00 | H22: 0.00 | I22: 0.00 | J22: -447.80 | K22: 0.00 | L22: 0.00 | M22: 0.00 | N22: 413.39
B23: 4.1. | C23: nepiniginiam turtui įsigyti | D23: 0.00 | E23: 0.00 | F23: 447.80 | G23: 0 | H23: 0 | I23: 0 | J23: -447.80 | K23: 0 | L23: 0 | M23: 0 | N23: 0.00
B24: 4.2. | C24: kitoms išlaidoms kompensuoti | D24: 861.19 | E24: 0.00 | F24: -447.80 | G24: 0 | H24: 0 | I24: 0 | J24: 0 | K24: 0 | L24: 0 | M24: 0 | N24: 413.39
B25: 5. | C25: Iš viso finansavimo sumų | D25: =SUM(D13,D16,D19,D22) -> 97,241.49 | E25: 106,768.15 | F25: 0.00 | G25: 0.00 | H25: 0.00 | I25: 0.00 | J25: -109,994.10 | K25: 0.00 | L25: 0.00 | M25: 0.00 | N25: 94,015.54
B26: * Šioje skiltyje rodomas finansavimo sumų pergrupavimas; praėjusio ataskaitinio laikotarpio klaidų taisymas; valiutos kurso įtaka pinigų likučiams, susijusiems su finansavimo sumomis; finansavimo sumų dalis, pagal 26-ojo VSAFAS „Fondų apskaita ir finansinių ataskaitų rinkinys“ 24 punktą pripažinta valstybės iždo finansavimo pajamomis.
